fUSD/lending_fUSD_20260606
["ID","MTS","AMOUNT","RATE_DAILY","PERIOD"]
[424258926,1780707073000,-150.0,0.00038065,120]
[424258930,1780707073000,-208.84,0.0003809,93]
[424258933,1780707073000,-1068.11,0.00038091,7]
[424258937,1780707073000,-1191.11104074,0.00038091,7]
[424258945,1780707073000,-1428.38747117,0.00038091,7]
[424258947,1780707073000,-1481.2378076,0.00038091,7]
[424258948,1780707073000,-1865.36488656,0.00038091,7]
[424258941,1780707073000,-1672.7364795,0.00038091,7]
[424258969,1780707073000,-2884.75459676,0.00038091,7]
[424258927,1780707073000,-5000.0,0.0003807,2]
[424258973,1780707073000,-499.979593,0.00038099,30]
[424259018,1780707073000,-5000.0,0.00038202,7]
[424259017,1780707073000,-1689.89123066,0.000382,120]
[424259015,1780707073000,-2000.0,0.00038199,48]
[424259012,1780707073000,-230.94762514,0.00038196,60]
[424259010,1780707073000,-534.40820502,0.00038196,60]
[424259013,1780707073000,-153.98902949,0.00038196,60]
[424259011,1780707073000,-187.54591842,0.00038196,60]
[424259016,1780707073000,-273.531604,0.000382,20]
[424259020,1780707073000,-150.0,0.00038222,120]
[424259019,1780707073000,-1000.0,0.00038209,60]
[424259021,1780707073000,-5000.0,0.00038227,7]
[424259023,1780707073000,-2000.0,0.00038239,15]
[424259022,1780707073000,-5000.0,0.00038234,2]
[424259035,1780707073000,-2000.0,0.00038279,9]
[424259008,1780707073000,-500.0,0.00038196,60]
[424259025,1780707073000,-1912.01922838,0.0003824,2]
[424259028,1780707073000,-1648.36196931,0.0003824,2]
[424259027,1780707073000,-1384.53893023,0.0003824,2]
[424259029,1780707073000,-1474.59855695,0.0003824,2]
[424259024,1780707073000,-1634.64079672,0.0003824,2]
[424259030,1780707073000,-1552.42478854,0.0003824,2]
[424258972,1780707073000,-2000.0,0.00038099,38]
[424259032,1780707073000,-5000.0,0.00038253,7]
[424259034,1780707073000,-5000.0,0.00038278,7]
[424259038,1780707073000,-299.50806145,0.00038286,120]
[424259040,1780707073000,-151.87334371,0.00038298,2]
[424259037,1780707073000,-165.0,0.0003828,120]
[424259036,1780707073000,-163.0,0.0003828,120]
[424259039,1780707073000,-1262.79580771,0.00038286,120]
[424259033,1780707073000,-150.0,0.00038261,120]
[424259026,1780707073000,-2946.29512042,0.0003824,2]
[424259006,1780707073000,-500.0,0.00038196,60]
[424259031,1780707073000,-236325.36,0.00038253,9]
[424259009,1780707073000,-500.0,0.00038196,60]
[424259014,1780707073000,-151.87334371,0.00038198,2]
[424258974,1780707073000,-811.9428694,0.000381,33]
[424258981,1780707073000,-5000.0,0.00038127,7]
[424258978,1780707073000,-150.0,0.00038104,120]
[424258990,1780707073000,-12872.4,0.0003817,9]
[424258980,1780707073000,-4071.0,0.00038125,30]
[424258979,1780707073000,-2000.0,0.00038114,49]
[424258989,1780707073000,-152.21,0.0003817,9]
[424258983,1780707073000,-300.0,0.00038144,49]
[424258984,1780707073000,-5000.0,0.00038152,2]
[424258986,1780707073000,-217035.0,0.0003816,60]
[424258987,1780707073000,-993.57,0.00038164,7]
[424258985,1780707073000,-5000.0,0.00038152,7]
[424258988,1780707073000,-1703.26,0.00038164,7]
[424259003,1780707073000,-500.0,0.00038196,60]
[424258982,1780707073000,-150.0,0.00038143,120]
[424259002,1780707073000,-500.0,0.00038196,60]
[424259005,1780707073000,-500.0,0.00038196,60]
[424258992,1780707073000,-5000.0,0.00038174,2]
[424259007,1780707073000,-500.0,0.00038196,60]
[424259000,1780707073000,-2000.0,0.00038195,60]
[424258998,1780707073000,-150.0,0.00038183,120]
[424258996,1780707073000,-250.0,0.00038174,2]
[424259001,1780707073000,-500.0,0.00038196,60]
[424258997,1780707073000,-5000.0,0.00038177,7]
[424258995,1780707073000,-250.0,0.00038174,2]
[424259004,1780707073000,-500.0,0.00038196,60]
[424258991,1780707073000,-5000.0,0.00038174,2]
[424258994,1780707073000,-250.0,0.00038174,2]
[424258999,1780707073000,-1000.0,0.00038186,60]
[424258993,1780707073000,-5000.0,0.00038174,2]
[424259074,1780707074000,-286.546088,0.00038301,30]
[424259072,1780707074000,-432.548374,0.00038301,30]
[424259070,1780707074000,-432.548374,0.00038301,30]
[424259068,1780707074000,-194.091505,0.00038301,30]
[424259066,1780707074000,-194.091505,0.00038301,30]
[424259067,1780707074000,-194.091505,0.00038301,30]
[424259071,1780707074000,-432.548374,0.00038301,30]
[424259076,1780707074000,-286.546088,0.00038301,30]
[424259069,1780707074000,-432.548374,0.00038301,30]
[424259073,1780707074000,-286.546088,0.00038301,30]
[424259088,1780707074000,-1322.17485,0.00038301,30]
[424259079,1780707074000,-151.0,0.00038301,30]
[424259078,1780707074000,-151.0,0.00038301,30]
[424259080,1780707074000,-871.633232,0.00038301,30]
[424259081,1780707074000,-871.633232,0.00038301,30]
[424259084,1780707074000,-151.0,0.00038301,30]
[424259085,1780707074000,-1322.17485,0.00038301,30]
[424259082,1780707074000,-871.633232,0.00038301,30]
[424259086,1780707074000,-622.821157,0.00038301,30]
[424259083,1780707074000,-871.633232,0.00038301,30]
[424259075,1780707074000,-286.546088,0.00038301,30]
[424259077,1780707074000,-151.0,0.00038301,30]
[424259059,1780707074000,-151.0,0.000383,30]
[424259049,1780707074000,-470.75516,0.000383,30]
[424259064,1780707074000,-217035.0,0.00038301,60]
[424259042,1780707074000,-3121.11061122,0.000383,120]
[424259041,1780707074000,-2000.0,0.00038299,52]
[424259044,1780707074000,-227.942999,0.000383,20]
[424259053,1780707074000,-1219.584576,0.000383,30]
[424259052,1780707074000,-1219.584576,0.000383,30]
[424259050,1780707074000,-1219.584576,0.000383,30]
[424259047,1780707074000,-470.75516,0.000383,30]
[424259046,1780707074000,-246.75,0.000383,6]
[424259043,1780707074000,-227.943,0.000383,20]
[424259048,1780707074000,-470.75516,0.000383,30]
[424259045,1780707074000,-227.942999,0.000383,20]
[424259051,1780707074000,-470.75516,0.000383,30]
[424259055,1780707074000,-1219.584576,0.000383,30]
[424259056,1780707074000,-196.858265,0.000383,30]
[424259054,1780707074000,-151.0,0.000383,30]
[424259065,1780707074000,-194.091505,0.00038301,30]
[424259057,1780707074000,-151.0,0.000383,30]
[424259060,1780707074000,-196.858265,0.000383,30]
[424259063,1780707074000,-150.0,0.000383,120]
[424259062,1780707074000,-220.205265,0.000383,30]
[424259058,1780707074000,-196.858265,0.000383,30]
[424259061,1780707074000,-196.858265,0.000383,30]
[424259087,1780707074000,-151.0,0.00038301,30]
[424259090,1780707074000,-247.024765,0.00038301,30]
[424259091,1780707074000,-151.0,0.00038301,30]
[424259129,1780707074000,-162.504604,0.00038301,30]
[424259128,1780707074000,-1287.378784,0.00038301,30]
[424259117,1780707074000,-323.208621,0.00038301,30]
[424259121,1780707074000,-323.208621,0.00038301,30]
[424259123,1780707074000,-924.780105,0.00038301,30]
[424259122,1780707074000,-2089.359127,0.00038301,30]
[424259124,1780707074000,-1287.378784,0.00038301,30]
[424259126,1780707074000,-2089.359127,0.00038301,30]
[424259127,1780707074000,-924.780105,0.00038301,30]
[424259125,1780707074000,-323.208621,0.00038301,30]
[424259120,1780707074000,-1502.447356,0.00038301,30]
[424259130,1780707074000,-924.780105,0.00038301,30]
[424259133,1780707074000,-924.780105,0.00038301,30]
[424259132,1780707074000,-162.504604,0.00038301,30]
[424259134,1780707074000,-162.504604,0.00038301,30]
[424259136,1780707074000,-416.188353,0.00038301,30]
[424259131,1780707074000,-2089.359127,0.00038301,30]
[424259135,1780707074000,-162.504604,0.00038301,30]
[424259138,1780707074000,-416.188353,0.00038301,30]
[424259137,1780707074000,-416.188353,0.00038301,30]
[424259089,1780707074000,-622.821157,0.00038301,30]
[424259118,1780707074000,-2089.359127,0.00038301,30]
[424259113,1780707074000,-1502.447356,0.00038301,30]
[424259119,1780707074000,-1287.378784,0.00038301,30]
[424259111,1780707074000,-342.280518,0.00038301,30]
[424259093,1780707074000,-622.821157,0.00038301,30]
[424259114,1780707074000,-323.208621,0.00038301,30]
[424259103,1780707074000,-2126.765351,0.00038301,30]
[424259104,1780707074000,-2126.765351,0.00038301,30]
[424259092,1780707074000,-1322.17485,0.00038301,30]
[424259095,1780707074000,-622.821157,0.00038301,30]
[424259098,1780707074000,-276.530525,0.00038301,30]
[424259101,1780707074000,-2126.765351,0.00038301,30]
[424259099,1780707074000,-276.530525,0.00038301,30]
[424259096,1780707074000,-276.530525,0.00038301,30]
[424259097,1780707074000,-151.0,0.00038301,30]
[424259094,1780707074000,-1322.17485,0.00038301,30]
[424259108,1780707074000,-151.0,0.00038301,30]
[424259115,1780707074000,-1287.378784,0.00038301,30]
[424259102,1780707074000,-2126.765351,0.00038301,30]
[424259109,1780707074000,-342.280518,0.00038301,30]
[424259116,1780707074000,-1502.447356,0.00038301,30]
[424259110,1780707074000,-151.0,0.00038301,30]
[424259112,1780707074000,-1502.447356,0.00038301,30]
[424259106,1780707074000,-151.0,0.00038301,30]
[424259107,1780707074000,-342.280518,0.00038301,30]
[424259105,1780707074000,-342.280518,0.00038301,30]
[424259100,1780707074000,-276.530525,0.00038301,30]
[424259177,1780707075000,-1543.31254,0.00038301,7]
[424259181,1780707075000,-1543.31254,0.00038301,7]
[424259179,1780707075000,-181.313747,0.00038301,30]
[424259176,1780707075000,-1091.871311,0.00038301,30]
[424259182,1780707075000,-699.951216,0.00038301,15]
[424259171,1780707075000,-151.0,0.00038301,30]
[424259172,1780707075000,-1543.31254,0.00038301,7]
[424259174,1780707075000,-1091.871311,0.00038301,30]
[424259170,1780707075000,-2532.201305,0.00038301,28]
[424259169,1780707075000,-2532.201305,0.00038301,28]
[424259186,1780707075000,-699.951216,0.00038301,15]
[424259173,1780707075000,-1543.31254,0.00038301,7]
[424259183,1780707075000,-532.737278,0.00038301,30]
[424259193,1780707075000,-151.0,0.00038301,30]
[424259187,1780707075000,-532.737278,0.00038301,30]
[424259180,1780707075000,-1091.871311,0.00038301,30]
[424259185,1780707075000,-1091.871311,0.00038301,30]
[424259188,1780707075000,-181.313747,0.00038301,30]
[424259191,1780707075000,-532.737278,0.00038301,30]
[424259190,1780707075000,-699.951216,0.00038301,15]
[424259189,1780707075000,-151.0,0.00038301,30]
[424259192,1780707075000,-151.0,0.00038301,30]
[424259203,1780707075000,-520.534854,0.00038301,30]
[424259204,1780707075000,-151.0,0.00038301,30]
[424259194,1780707075000,-151.0,0.00038301,30]
[424259195,1780707075000,-532.737278,0.00038301,30]
[424259175,1780707075000,-181.313747,0.00038301,30]
[424259184,1780707075000,-181.313747,0.00038301,30]
[424259178,1780707075000,-699.951216,0.00038301,15]
[424259144,1780707075000,-400.0,0.00038301,30]
[424259168,1780707075000,-2532.201305,0.00038301,28]
[424259141,1780707075000,-238.116691,0.00038301,30]
[424259140,1780707075000,-238.116691,0.00038301,30]
[424259139,1780707075000,-416.188353,0.00038301,30]
[424259153,1780707075000,-723.193245,0.00038301,30]
[424259143,1780707075000,-238.116691,0.00038301,30]
[424259142,1780707075000,-400.0,0.00038301,30]
[424259145,1780707075000,-238.116691,0.00038301,30]
[424259148,1780707075000,-723.193245,0.00038301,30]
[424259147,1780707075000,-400.0,0.00038301,30]
[424259146,1780707075000,-151.0,0.00038301,30]
[424259197,1780707075000,-151.0,0.00038301,30]
[424259150,1780707075000,-281.550892,0.00038301,30]
[424259149,1780707075000,-400.0,0.00038301,30]
[424259167,1780707075000,-2532.201305,0.00038301,28]
[424259151,1780707075000,-723.193245,0.00038301,30]
[424259155,1780707075000,-1094.222631,0.00038301,30]
[424259161,1780707075000,-166.396231,0.00038301,30]
[424259164,1780707075000,-166.396231,0.00038301,30]
[424259156,1780707075000,-166.396231,0.00038301,30]
[424259165,1780707075000,-616.852183,0.00038301,30]
[424259154,1780707075000,-151.0,0.00038301,30]
[424259163,1780707075000,-616.852183,0.00038301,30]
[424259166,1780707075000,-616.852183,0.00038301,30]
[424259159,1780707075000,-1094.222631,0.00038301,30]
[424259160,1780707075000,-616.852183,0.00038301,30]
[424259158,1780707075000,-166.396231,0.00038301,30]
[424259157,1780707075000,-1094.222631,0.00038301,30]
[424259162,1780707075000,-1094.222631,0.00038301,30]
[424259152,1780707075000,-723.193245,0.00038301,30]
[424259196,1780707075000,-151.0,0.00038301,30]
[424259245,1780707075000,-151.0,0.00038337,30]
[424259201,1780707075000,-151.0,0.00038301,30]
[424259233,1780707075000,-1684.513686,0.00038337,30]
[424259237,1780707075000,-761.888544,0.00038337,30]
[424259235,1780707075000,-1684.513686,0.00038337,30]
[424259232,1780707075000,-3270.63739639,0.00038337,2]
[424259238,1780707075000,-761.888544,0.00038337,30]
[424259236,1780707075000,-1684.513686,0.00038337,30]
[424259239,1780707075000,-761.888544,0.00038337,30]
[424259240,1780707075000,-761.888544,0.00038337,30]
[424259243,1780707075000,-151.0,0.00038337,30]
[424259253,1780707075000,-274.89,0.00038355,120]
[424259242,1780707075000,-151.0,0.00038337,30]
[424259244,1780707075000,-151.0,0.00038337,30]
[424259252,1780707075000,-5000.0,0.00038353,7]
[424259248,1780707075000,-151.0,0.00038337,30]
[424259246,1780707075000,-151.0,0.00038337,30]
[424259249,1780707075000,-280.018418,0.00038337,30]
[424259250,1780707075000,-150.0,0.0003834,120]
[424259247,1780707075000,-151.0,0.00038337,30]
[424259255,1780707075000,-300.0,0.00038355,120]
[424259254,1780707075000,-300.0,0.00038355,120]
[424259257,1780707075000,-2000.0,0.00038355,2]
[424259256,1780707075000,-300.0,0.00038355,120]
[424259261,1780707075000,-172.0,0.00038356,120]
[424259259,1780707075000,-2000.0,0.00038355,14]
[424259260,1780707075000,-1694.61,0.00038356,2]
[424259258,1780707075000,-2000.0,0.00038355,7]
[424259198,1780707075000,-151.0,0.00038301,30]
[424259230,1780707075000,-3765.88336791,0.00038337,2]
[424259241,1780707075000,-151.0,0.00038337,30]
[424259251,1780707075000,-641.0,0.0003835,14]
[424259231,1780707075000,-1482.85642051,0.00038337,2]
[424259200,1780707075000,-151.0,0.00038301,30]
[424259234,1780707075000,-1684.513686,0.00038337,30]
[424259202,1780707075000,-151.0,0.00038301,30]
[424259199,1780707075000,-520.534854,0.00038301,30]
[424259206,1780707075000,-520.534854,0.00038301,30]
[424259216,1780707075000,-4234.643227,0.00038301,30]
[424259218,1780707075000,-5000.0,0.00038303,7]
[424259208,1780707075000,-186.915139,0.00038301,30]
[424259217,1780707075000,-4234.643227,0.00038301,30]
[424259207,1780707075000,-151.0,0.00038301,30]
[424259209,1780707075000,-520.534854,0.00038301,30]
[424259210,1780707075000,-151.0,0.00038301,30]
[424259213,1780707075000,-186.915139,0.00038301,30]
[424259214,1780707075000,-4234.643227,0.00038301,30]
[424259205,1780707075000,-151.0,0.00038301,30]
[424259224,1780707075000,-2000.0,0.00038321,5]
[424259227,1780707075000,-1473.21581737,0.00038337,2]
[424259211,1780707075000,-186.915139,0.00038301,30]
[424259228,1780707075000,-3449.37159578,0.00038337,2]
[424259225,1780707075000,-5000.0,0.00038328,7]
[424259222,1780707075000,-5000.0,0.00038315,2]
[424259223,1780707075000,-1000.0,0.00038317,60]
[424259221,1780707075000,-3305.3365191,0.00038307,30]
[424259226,1780707075000,-177.19523279,0.00038329,120]
[424259219,1780707075000,-150.0,0.00038303,120]
[424259220,1780707075000,-150.0,0.00038303,120]
[424259215,1780707075000,-4234.643227,0.00038301,30]
[424259212,1780707075000,-186.915139,0.00038301,30]
[424259229,1780707075000,-1485.41412397,0.00038337,2]
[424259296,1780707076000,-216.88358505,0.00038356,2]
[424259308,1780707076000,-2000.0,0.00038372,33]
[424259306,1780707076000,-400.0,0.0003837,2]
[424259305,1780707076000,-524.48,0.00038363,120]
[424259295,1780707076000,-1026.62,0.00038356,30]
[424259298,1780707076000,-650.65075515,0.00038356,2]
[424259303,1780707076000,-152.8,0.00038363,120]
[424259300,1780707076000,-739.96,0.00038356,30]
[424259297,1780707076000,-433.7671701,0.00038356,2]
[424259294,1780707076000,-1562.0,0.00038356,30]
[424259301,1780707076000,-2059.27,0.00038356,30]
[424259311,1780707076000,-5000.0,0.00038378,7]
[424259299,1780707076000,-867.5343402,0.00038356,2]
[424259317,1780707076000,-1300.0,0.00038399,60]
[424259330,1780707076000,-311.1,0.00038399,120]
[424259313,1780707076000,-280.0,0.0003838,120]
[424259315,1780707076000,-151.87334371,0.00038398,2]
[424259316,1780707076000,-2000.0,0.00038398,30]
[424259310,1780707076000,-5000.0,0.00038376,30]
[424259312,1780707076000,-150.0,0.00038379,120]
[424259314,1780707076000,-5000.0,0.00038397,2]
[424259307,1780707076000,-2000.0,0.0003837,50]
[424259319,1780707076000,-100000.0,0.00038399,14]
[424259320,1780707076000,-43203.97,0.00038399,7]
[424259321,1780707076000,-500.0,0.00038399,60]
[424259328,1780707076000,-151.0,0.00038399,120]
[424259327,1780707076000,-500.0,0.00038399,120]
[424259302,1780707076000,-1150.71,0.00038363,120]
[424259309,1780707076000,-152.0,0.00038375,7]
[424259292,1780707076000,-627.83,0.00038356,7]
[424259265,1780707076000,-1000.0,0.00038356,2]
[424259293,1780707076000,-28022.66,0.00038356,14]
[424259264,1780707076000,-1000.0,0.00038356,2]
[424259263,1780707076000,-993.57,0.00038356,7]
[424259262,1780707076000,-1500.0,0.00038356,120]
[424259267,1780707076000,-1000.0,0.00038356,2]
[424259276,1780707076000,-1000.0,0.00038356,2]
[424259278,1780707076000,-1000.0,0.00038356,2]
[424259277,1780707076000,-1000.0,0.00038356,2]
[424259266,1780707076000,-1000.0,0.00038356,2]
[424259275,1780707076000,-1000.0,0.00038356,2]
[424259268,1780707076000,-1000.0,0.00038356,2]
[424259269,1780707076000,-1000.0,0.00038356,2]
[424259270,1780707076000,-1000.0,0.00038356,2]
[424259271,1780707076000,-1000.0,0.00038356,2]
[424259272,1780707076000,-1000.0,0.00038356,2]
[424259274,1780707076000,-1000.0,0.00038356,2]
[424259273,1780707076000,-1000.0,0.00038356,2]
[424259279,1780707076000,-1000.0,0.00038356,2]
[424259281,1780707076000,-1000.0,0.00038356,2]
[424259282,1780707076000,-1000.0,0.00038356,2]
[424259280,1780707076000,-1000.0,0.00038356,2]
[424259285,1780707076000,-208.17039274,0.00038356,2]
[424259290,1780707076000,-2000.0,0.00038356,101]
[424259286,1780707076000,-2000.0,0.00038356,101]
[424259288,1780707076000,-2000.0,0.00038356,101]
[424259289,1780707076000,-2000.0,0.00038356,101]
[424259287,1780707076000,-2000.0,0.00038356,101]
[424259283,1780707076000,-1000.0,0.00038356,2]
[424259284,1780707076000,-1066.87491431,0.00038356,2]
[424259291,1780707076000,-2000.0,0.00038356,101]
[424259304,1780707076000,-251.79,0.00038363,120]
[424259329,1780707076000,-156.587,0.00038399,120]
[424259318,1780707076000,-500.0,0.00038399,60]
[424259322,1780707076000,-500.0,0.00038399,120]
[424259360,1780707076000,-250.0,0.00038399,120]
[424259361,1780707076000,-151.0,0.00038399,120]
[424259358,1780707076000,-386.87667747,0.00038399,120]
[424259362,1780707076000,-151.0,0.00038399,120]
[424259365,1780707076000,-162.380719,0.00038399,120]
[424259369,1780707076000,-10000.0,0.00038399,120]
[424259368,1780707076000,-151.0,0.00038399,120]
[424259367,1780707076000,-433.25385701,0.00038399,120]
[424259366,1780707076000,-201.93286098,0.00038399,120]
[424259371,1780707076000,-500.0,0.00038399,120]
[424259381,1780707076000,-518.5,0.00038399,120]
[424259382,1780707076000,-500.0,0.00038399,120]
[424259370,1780707076000,-162.380719,0.00038399,120]
[424259373,1780707076000,-250.0,0.00038399,120]
[424259376,1780707076000,-644.79446245,0.00038399,120]
[424259378,1780707076000,-200.0,0.00038399,120]
[424259372,1780707076000,-500.0,0.00038399,120]
[424259375,1780707076000,-151.0,0.00038399,120]
[424259377,1780707076000,-168.3888056,0.00038399,120]
[424259379,1780707076000,-156.587,0.00038399,120]
[424259374,1780707076000,-151.0,0.00038399,120]
[424259380,1780707076000,-209.40437684,0.00038399,120]
[424259387,1780707076000,-200.0,0.00038399,120]
[424259385,1780707076000,-620.0,0.00038399,120]
[424259383,1780707076000,-10000.0,0.00038399,120]
[424259388,1780707076000,-174.61919141,0.00038399,120]
[424259384,1780707076000,-168.3888056,0.00038399,120]
[424259389,1780707076000,-668.65185756,0.00038399,120]
[424259323,1780707076000,-2000.0,0.00038399,120]
[424259363,1780707076000,-621.78829552,0.00038399,120]
[424259364,1780707076000,-200.0,0.00038399,120]
[424259386,1780707076000,-250.0,0.00038399,120]
[424259357,1780707076000,-599.60298507,0.00038399,120]
[424259325,1780707076000,-151.0,0.00038399,120]
[424259324,1780707076000,-151.0,0.00038399,120]
[424259326,1780707076000,-300.0,0.00038399,120]
[424259331,1780707076000,-518.5,0.00038399,120]
[424259333,1780707076000,-162.380719,0.00038399,120]
[424259334,1780707076000,-322.6107,0.00038399,120]
[424259332,1780707076000,-151.0,0.00038399,120]
[424259340,1780707076000,-174.61919141,0.00038399,120]
[424259359,1780707076000,-500.0,0.00038399,120]
[424259335,1780707076000,-151.0,0.00038399,120]
[424259337,1780707076000,-334.5472959,0.00038399,120]
[424259339,1780707076000,-151.0,0.00038399,120]
[424259343,1780707076000,-151.0,0.00038399,120]
[424259338,1780707076000,-537.6845,0.00038399,120]
[424259336,1780707076000,-168.3888056,0.00038399,120]
[424259341,1780707076000,-346.92554584,0.00038399,120]
[424259342,1780707076000,-557.5788265,0.00038399,120]
[424259346,1780707076000,-151.0,0.00038399,120]
[424259349,1780707076000,-10000.0,0.00038399,120]
[424259348,1780707076000,-187.78006524,0.00038399,120]
[424259354,1780707076000,-156.587,0.00038399,120]
[424259353,1780707076000,-151.0,0.00038399,120]
[424259351,1780707076000,-373.07297731,0.00038399,120]
[424259347,1780707076000,-151.0,0.00038399,120]
[424259352,1780707076000,-156.587,0.00038399,120]
[424259356,1780707076000,-10000.0,0.00038399,120]
[424259344,1780707076000,-181.08010149,0.00038399,120]
[424259355,1780707076000,-194.72792766,0.00038399,120]
[424259345,1780707076000,-359.76179104,0.00038399,120]
[424259350,1780707076000,-578.20924308,0.00038399,120]
[424259424,1780707077000,-151.0,0.00038399,120]
[424259432,1780707077000,-200.0,0.00038399,120]
[424259433,1780707077000,-666.72878,0.00038399,120]
[424259422,1780707077000,-3000.0,0.00038399,120]
[424259429,1780707077000,-160.0,0.00038399,120]
[424259428,1780707077000,-151.0,0.00038399,120]
[424259431,1780707077000,-200.0,0.00038399,120]
[424259426,1780707077000,-151.0,0.00038399,120]
[424259430,1780707077000,-250.0,0.00038399,120]
[424259425,1780707077000,-151.0,0.00038399,120]
[424259421,1780707077000,-168.3888056,0.00038399,120]
[424259423,1780707077000,-719.04747942,0.00038399,120]
[424259434,1780707077000,-578.20924308,0.00038399,120]
[424259448,1780707077000,-181.08010149,0.00038399,120]
[424259435,1780707077000,-500.0,0.00038399,120]
[424259437,1780707077000,-151.0,0.00038399,120]
[424259445,1780707077000,-151.0,0.00038399,120]
[424259438,1780707077000,-500.0,0.00038399,120]
[424259439,1780707077000,-151.0,0.00038399,120]
[424259441,1780707077000,-500.0,0.00038399,120]
[424259444,1780707077000,-500.0,0.00038399,120]
[424259440,1780707077000,-10000.0,0.00038399,120]
[424259443,1780707077000,-7142.856,0.00038399,120]
[424259442,1780707077000,-251.0,0.00038399,120]
[424259447,1780707077000,-1000.0,0.00038399,120]
[424259457,1780707077000,-200.0,0.00038399,120]
[424259446,1780707077000,-151.0,0.00038399,120]
[424259427,1780707077000,-174.07601488,0.00038399,120]
[424259436,1780707077000,-187.78006524,0.00038399,120]
[424259415,1780707077000,-152.0,0.00038399,120]
[424259450,1780707077000,-174.61919141,0.00038399,120]
[424259416,1780707077000,-200.0,0.00038399,120]
[424259390,1780707077000,-217.15233878,0.00038399,120]
[424259395,1780707077000,-200.0,0.00038399,120]
[424259391,1780707077000,-3024.30335692,0.00038399,120]
[424259394,1780707077000,-151.0,0.00038399,120]
[424259392,1780707077000,-537.6845,0.00038399,120]
[424259393,1780707077000,-151.0,0.00038399,120]
[424259397,1780707077000,-200.0,0.00038399,120]
[424259407,1780707077000,-181.08010149,0.00038399,120]
[424259396,1780707077000,-162.380719,0.00038399,120]
[424259398,1780707077000,-160.0,0.00038399,120]
[424259406,1780707077000,-557.5788265,0.00038399,120]
[424259400,1780707077000,-500.0,0.00038399,120]
[424259399,1780707077000,-642.94,0.00038399,120]
[424259417,1780707077000,-1000.0,0.00038399,120]
[424259402,1780707077000,-225.18697532,0.00038399,120]
[424259401,1780707077000,-250.0,0.00038399,120]
[424259404,1780707077000,-500.0,0.00038399,120]
[424259405,1780707077000,-693.39197629,0.00038399,120]
[424259408,1780707077000,-151.0,0.00038399,120]
[424259409,1780707077000,-10000.0,0.00038399,120]
[424259419,1780707077000,-200.0,0.00038399,120]
[424259411,1780707077000,-500.0,0.00038399,120]
[424259410,1780707077000,-6888.0,0.00038399,120]
[424259413,1780707077000,-151.0,0.00038399,120]
[424259412,1780707077000,-174.61919141,0.00038399,120]
[424259420,1780707077000,-233.5188934,0.00038399,120]
[424259414,1780707077000,-151.0,0.00038399,120]
[424259418,1780707077000,-520.0,0.00038399,120]
[424259403,1780707077000,-200.0,0.00038399,120]
[424259449,1780707077000,-518.5,0.00038399,120]
[424259500,1780707077000,-500.0,0.00038399,120]
[424259451,1780707077000,-745.65223615,0.00038399,120]
[424259490,1780707077000,-187.78006524,0.00038399,120]
[424259491,1780707077000,-537.6845,0.00038399,120]
[424259487,1780707077000,-151.0,0.00038399,120]
[424259486,1780707077000,-200.0,0.00038399,120]
[424259488,1780707077000,-621.78829552,0.00038399,120]
[424259495,1780707077000,-200.0,0.00038399,120]
[424259489,1780707077000,-151.0,0.00038399,120]
[424259496,1780707077000,-1000.0,0.00038399,120]
[424259498,1780707077000,-200.0,0.00038399,120]
[424259494,1780707077000,-201.93286098,0.00038399,120]
[424259493,1780707077000,-189.82199726,0.00038399,120]